Workbook

Sheet 条件調整
B1: Scale印刷用
B3: ＜前提条件＞
C4: フォントは標準（MSPゴシックの11）で固定 →済
C5: 印刷倍率は22%で固定 →済
C6: 下記手順でSheet("Scale原紙")の列幅を試行錯誤で決定する。（使用するﾌﾟﾘﾝﾀｰと印刷する用紙ごとに設定の必要あり）
B8: ＜手順＞
C9: ① Sheet”Scale原紙”を普通紙に試し印刷 （3～5行目だけ印刷）
C10: ② 長さを実測して、Cell(D16)にa値を再入力 ＜Ex ; 280mmを実測したら282.5mmだったと仮定すると、a = a*280/282.5 >
C11: ③ [列幅調整]（ｺﾏﾝﾄﾞﾎﾞﾀﾝ）をｸﾘｯｸする → Sheet("Scale原紙")の列幅が自動調整される。（少し時間がかかります）
C12: ④ ①～③を繰返して微調整し、最後に実際に印刷する用紙で再確認 （用紙を変える際は印刷条件設定変更を忘れずに行うこと）
K14: 行設定用
C15: a値（=ﾋﾟｸｾﾙ/mm)＝ | D15: 18.75 | H15: 配列ﾃﾞｰﾀ | L15: ﾋﾟｸｾﾙ/mm＝ | M15: =19.36/1.0325 -> 18.75060533 | Q15: 配列ﾃﾞｰﾀ
B16: No. | C16: 積算ﾋﾟｸｾﾙ | D16: →整数化 | E16: ﾋﾟｸｾﾙ | F16: 列幅値 | H16: ﾋﾟｸｾﾙ | I16: 列幅値 | K16: No. | L16: 積算ﾋﾟｸｾﾙ | M16: →整数化 | N16: ﾋﾟｸｾﾙ | O16: 行高値 | Q16: ﾋﾟｸｾﾙ | R16: 行高値
B17: 1 | C17: =D$15*B17 -> 18.75 | D17: =ROUND(C17,0) -> 19 | E17: =D17 -> 19 | F17: =LOOKUP(E17,H$17:H$32,I$17:I$32) -> 1.75 | G17: 9 | H17: 8 | I17: 0.62 | K17: 1 | L17: =M$15*K17 -> 18.75060533 | M17: =ROUND(L17,0) -> 19 | N17: =M17 -> 19 | O17: =N17*0.75 -> 14.25 | Q17: 8 | R17: 6
B18: 2 | C18: 37.5 | D18: =ROUND(C18,0) -> 38 | E18: =D18-D17 -> 19 | F18: 1.75 | H18: 9 | I18: 0.69 | K18: 2 | L18: 37.50121065 | M18: =ROUND(L18,0) -> 38 | N18: =M18-M17 -> 19 | O18: =N18*0.75 -> 14.25 | Q18: 9 | R18: 6.75
B19: 3 | C19: 56.25 | D19: 56 | E19: =D19-D18 -> 18 | F19: 1.63 | H19: 10 | I19: 0.77 | K19: 3 | L19: 56.25181598 | M19: 56 | N19: =M19-M18 -> 18 | O19: 13.5 | Q19: 10 | R19: 7.5
B20: 4 | C20: 75 | D20: 75 | E20: 19 | F20: 1.75 | H20: 11 | I20: 0.85 | K20: 4 | L20: 75.00242131 | M20: 75 | N20: 19 | O20: 14.25 | Q20: 11 | R20: =Q20*0.75 -> 8.25
B21: 5 | C21: 93.75 | D21: 94 | E21: 19 | F21: 1.75 | H21: 12 | I21: 0.92 | K21: 5 | L21: 93.75302663 | M21: 94 | N21: 19 | O21: 14.25 | Q21: 12 | R21: =Q21*0.75 -> 9
B22: 6 | C22: 112.5 | D22: 113 | E22: 19 | F22: 1.75 | H22: 13 | I22: 1 | K22: 6 | L22: 112.503632 | M22: 113 | N22: 19 | O22: 14.25 | Q22: 13 | R22: 9.75
B23: 7 | C23: 131.25 | D23: 131 | E23: 18 | F23: 1.63 | H23: 14 | I23: 1.13 | K23: 7 | L23: 131.2542373 | M23: 131 | N23: 18 | O23: 13.5 | Q23: 14 | R23: 10.5
B24: 8 | C24: 150 | D24: 150 | E24: 19 | F24: 1.75 | H24: 15 | I24: 1.25 | K24: 8 | L24: 150.0048426 | M24: 150 | N24: 19 | O24: 14.25 | Q24: 15 | R24: 11.25
B25: 9 | C25: 168.75 | D25: 169 | E25: 19 | F25: 1.75 | H25: 16 | I25: 1.38 | K25: 9 | L25: 168.7554479 | M25: 169 | N25: 19 | O25: 14.25 | Q25: 16 | R25: 12
B26: 10 | C26: 187.5 | D26: 188 | E26: 19 | F26: 1.75 | H26: 17 | I26: 1.5 | K26: 10 | L26: 187.5060533 | M26: 188 | N26: 19 | O26: 14.25 | Q26: 17 | R26: =Q26*0.75 -> 12.75
B27: 11 | C27: 206.25 | D27: 206 | E27: 18 | F27: 1.63 | H27: 18 | I27: 1.63 | K27: 11 | L27: 206.2566586 | M27: 206 | N27: 18 | O27: 13.5 | Q27: 18 | R27: 13.5
B28: 12 | C28: 225 | D28: 225 | E28: 19 | F28: 1.75 | H28: 19 | I28: 1.75 | K28: 12 | L28: 225.0072639 | M28: 225 | N28: 19 | O28: 14.25 | Q28: 19 | R28: 14.25
B29: 13 | C29: 243.75 | D29: 244 | E29: 19 | F29: 1.75 | H29: 20 | I29: 1.88 | K29: 13 | L29: 243.7578692 | M29: 244 | N29: 19 | O29: 14.25 | Q29: 20 | R29: =Q29*0.75 -> 15
B30: 14 | C30: 262.5 | D30: 263 | E30: 19 | F30: 1.75 | H30: 21 | I30: 2 | K30: 14 | L30: 262.5084746 | M30: 263 | N30: 19 | O30: 14.25 | Q30: 21 | R30: 15.75
B31: 15 | C31: 281.25 | D31: 281 | E31: 18 | F31: 1.63 | H31: 22 | I31: 2.13 | K31: 15 | L31: 281.2590799 | M31: 281 | N31: 18 | O31: 13.5 | Q31: 22 | R31: 16.5
B32: 16 | C32: 300 | D32: 300 | E32: 19 | F32: 1.75 | H32: 23 | I32: 2.25 | K32: 16 | L32: 300.0096852 | M32: 300 | N32: 19 | O32: 14.25 | Q32: 23 | R32: 17.25
B33: 17 | C33: 318.75 | D33: 319 | E33: 19 | F33: 1.75 | K33: 17 | L33: 318.7602906 | M33: 319 | N33: 19 | O33: 14.25
B34: 18 | C34: 337.5 | D34: 338 | E34: 19 | F34: 1.75 | K34: 18 | L34: 337.5108959 | M34: 338 | N34: 19 | O34: 14.25
B35: 19 | C35: 356.25 | D35: 356 | E35: 18 | F35: 1.63 | K35: 19 | L35: 356.2615012 | M35: 356 | N35: 18 | O35: 13.5
B36: 20 | C36: 375 | D36: 375 | E36: 19 | F36: 1.75 | K36: 20 | L36: 375.0121065 | M36: 375 | N36: 19 | O36: 14.25
B37: 21 | C37: 393.75 | D37: 394 | E37: 19 | F37: 1.75 | K37: 21 | L37: 393.7627119 | M37: 394 | N37: 19 | O37: 14.25
B38: 22 | C38: 412.5 | D38: 413 | E38: 19 | F38: 1.75 | K38: 22 | L38: 412.5133172 | M38: 413 | N38: 19 | O38: 14.25
B39: 23 | C39: 431.25 | D39: 431 | E39: 18 | F39: 1.63 | K39: 23 | L39: 431.2639225 | M39: 431 | N39: 18 | O39: 13.5
B40: 24 | C40: 450 | D40: 450 | E40: 19 | F40: 1.75 | K40: 24 | L40: 450.0145278 | M40: 450 | N40: 19 | O40: 14.25
B41: 25 | C41: 468.75 | D41: 469 | E41: 19 | F41: 1.75 | K41: 25 | L41: 468.7651332 | M41: 469 | N41: 19 | O41: 14.25
B42: 26 | C42: 487.5 | D42: 488 | E42: 19 | F42: 1.75 | K42: 26 | L42: 487.5157385 | M42: 488 | N42: 19 | O42: 14.25
B43: 27 | C43: 506.25 | D43: 506 | E43: 18 | F43: 1.63 | K43: 27 | L43: 506.2663438 | M43: 506 | N43: 18 | O43: 13.5
B44: 28 | C44: 525 | D44: 525 | E44: 19 | F44: 1.75 | K44: 28 | L44: 525.0169492 | M44: 525 | N44: 19 | O44: 14.25
B45: 29 | C45: 543.75 | D45: 544 | E45: 19 | F45: 1.75 | K45: 29 | L45: 543.7675545 | M45: 544 | N45: 19 | O45: 14.25
B46: 30 | C46: 562.5 | D46: 563 | E46: 19 | F46: 1.75 | K46: 30 | L46: 562.5181598 | M46: 563 | N46: 19 | O46: 14.25
B47: 31 | C47: 581.25 | D47: 581 | E47: 18 | F47: 1.63 | K47: 31 | L47: 581.2687651 | M47: 581 | N47: 18 | O47: 13.5
B48: 32 | C48: 600 | D48: 600 | E48: 19 | F48: 1.75 | K48: 32 | L48: 600.0193705 | M48: 600 | N48: 19 | O48: 14.25
B49: 33 | C49: 618.75 | D49: 619 | E49: 19 | F49: 1.75 | K49: 33 | L49: 618.7699758 | M49: 619 | N49: 19 | O49: 14.25
B50: 34 | C50: 637.5 | D50: 638 | E50: 19 | F50: 1.75 | K50: 34 | L50: 637.5205811 | M50: 638 | N50: 19 | O50: 14.25
B51: 35 | C51: 656.25 | D51: 656 | E51: 18 | F51: 1.63 | K51: 35 | L51: 656.2711864 | M51: 656 | N51: 18 | O51: 13.5
B52: 36 | C52: 675 | D52: 675 | E52: 19 | F52: 1.75 | K52: 36 | L52: 675.0217918 | M52: 675 | N52: 19 | O52: 14.25
B53: 37 | C53: 693.75 | D53: 694 | E53: 19 | F53: 1.75 | K53: 37 | L53: 693.7723971 | M53: 694 | N53: 19 | O53: 14.25
B54: 38 | C54: 712.5 | D54: 713 | E54: 19 | F54: 1.75 | K54: 38 | L54: 712.5230024 | M54: 713 | N54: 19 | O54: 14.25
B55: 39 | C55: 731.25 | D55: 731 | E55: 18 | F55: 1.63 | K55: 39 | L55: 731.2736077 | M55: 731 | N55: 18 | O55: 13.5
B56: 40 | C56: 750 | D56: 750 | E56: 19 | F56: 1.75 | K56: 40 | L56: 750.0242131 | M56: 750 | N56: 19 | O56: 14.25
B57: 41 | C57: 768.75 | D57: 769 | E57: 19 | F57: 1.75 | K57: 41 | L57: 768.7748184 | M57: 769 | N57: 19 | O57: 14.25
B58: 42 | C58: 787.5 | D58: 788 | E58: 19 | F58: 1.75 | K58: 42 | L58: 787.5254237 | M58: 788 | N58: 19 | O58: 14.25
B59: 43 | C59: 806.25 | D59: 806 | E59: 18 | F59: 1.63 | K59: 43 | L59: 806.2760291 | M59: 806 | N59: 18 | O59: 13.5
B60: 44 | C60: 825 | D60: 825 | E60: 19 | F60: 1.75 | K60: 44 | L60: 825.0266344 | M60: 825 | N60: 19 | O60: 14.25
B61: 45 | C61: 843.75 | D61: 844 | E61: 19 | F61: 1.75 | K61: 45 | L61: 843.7772397 | M61: 844 | N61: 19 | O61: 14.25
B62: 46 | C62: 862.5 | D62: 863 | E62: 19 | F62: 1.75 | K62: 46 | L62: 862.527845 | M62: 863 | N62: 19 | O62: 14.25
B63: 47 | C63: 881.25 | D63: 881 | E63: 18 | F63: 1.63 | K63: 47 | L63: 881.2784504 | M63: 881 | N63: 18 | O63: 13.5
B64: 48 | C64: 900 | D64: 900 | E64: 19 | F64: 1.75 | K64: 48 | L64: 900.0290557 | M64: 900 | N64: 19 | O64: 14.25
B65: 49 | C65: 918.75 | D65: 919 | E65: 19 | F65: 1.75 | K65: 49 | L65: 918.779661 | M65: 919 | N65: 19 | O65: 14.25
B66: 50 | C66: 937.5 | D66: 938 | E66: 19 | F66: 1.75 | K66: 50 | L66: 937.5302663 | M66: 938 | N66: 19 | O66: 14.25
B67: 51 | C67: 956.25 | D67: 956 | E67: 18 | F67: 1.63 | K67: 51 | L67: 956.2808717 | M67: 956 | N67: 18 | O67: 13.5
B68: 52 | C68: 975 | D68: 975 | E68: 19 | F68: 1.75 | K68: 52 | L68: 975.031477 | M68: 975 | N68: 19 | O68: 14.25
B69: 53 | C69: 993.75 | D69: 994 | E69: 19 | F69: 1.75 | K69: 53 | L69: 993.7820823 | M69: 994 | N69: 19 | O69: 14.25
B70: 54 | C70: 1012.5 | D70: 1013 | E70: 19 | F70: 1.75 | K70: 54 | L70: 1012.532688 | M70: 1013 | N70: 19 | O70: 14.25
B71: 55 | C71: 1031.25 | D71: 1031 | E71: 18 | F71: 1.63 | K71: 55 | L71: 1031.283293 | M71: 1031 | N71: 18 | O71: 13.5
B72: 56 | C72: 1050 | D72: 1050 | E72: 19 | F72: 1.75 | K72: 56 | L72: 1050.033898 | M72: 1050 | N72: 19 | O72: 14.25
B73: 57 | C73: 1068.75 | D73: 1069 | E73: 19 | F73: 1.75 | K73: 57 | L73: 1068.784504 | M73: 1069 | N73: 19 | O73: 14.25
B74: 58 | C74: 1087.5 | D74: 1088 | E74: 19 | F74: 1.75 | K74: 58 | L74: 1087.535109 | M74: 1088 | N74: 19 | O74: 14.25
B75: 59 | C75: 1106.25 | D75: 1106 | E75: 18 | F75: 1.63 | K75: 59 | L75: 1106.285714 | M75: 1106 | N75: 18 | O75: 13.5
B76: 60 | C76: 1125 | D76: 1125 | E76: 19 | F76: 1.75 | K76: 60 | L76: 1125.03632 | M76: 1125 | N76: 19 | O76: 14.25
B77: 61 | C77: 1143.75 | D77: 1144 | E77: 19 | F77: 1.75 | K77: 61 | L77: 1143.786925 | M77: 1144 | N77: 19 | O77: 14.25
B78: 62 | C78: 1162.5 | D78: 1163 | E78: 19 | F78: 1.75 | K78: 62 | L78: 1162.53753 | M78: 1163 | N78: 19 | O78: 14.25
B79: 63 | C79: 1181.25 | D79: 1181 | E79: 18 | F79: 1.63 | K79: 63 | L79: 1181.288136 | M79: 1181 | N79: 18 | O79: 13.5
B80: 64 | C80: 1200 | D80: 1200 | E80: 19 | F80: 1.75 | K80: 64 | L80: 1200.038741 | M80: 1200 | N80: 19 | O80: 14.25
B81: 65 | C81: =D$15*B81 -> 1218.75 | D81: 1219 | E81: 19 | F81: =LOOKUP(E81,H$17:H$32,I$17:I$32) -> 1.75 | K81: 65 | L81: =M$15*K81 -> 1218.789346 | M81: 1219 | N81: 19 | O81: 14.25
B82: 66 | C82: 1237.5 | D82: =ROUND(C82,0) -> 1238 | E82: 19 | F82: 1.75 | K82: 66 | L82: 1237.539952 | M82: =ROUND(L82,0) -> 1238 | N82: 19 | O82: =N82*0.75 -> 14.25
B83: 67 | C83: 1256.25 | D83: 1256 | E83: =D83-D82 -> 18 | F83: 1.63 | K83: 67 | L83: 1256.290557 | M83: 1256 | N83: =M83-M82 -> 18 | O83: 13.5
B84: 68 | C84: 1275 | D84: 1275 | E84: 19 | F84: 1.75 | K84: 68 | L84: 1275.041162 | M84: 1275 | N84: 19 | O84: 14.25
B85: 69 | C85: 1293.75 | D85: 1294 | E85: 19 | F85: 1.75 | K85: 69 | L85: 1293.791768 | M85: 1294 | N85: 19 | O85: 14.25
B86: 70 | C86: 1312.5 | D86: 1313 | E86: 19 | F86: 1.75 | K86: 70 | L86: 1312.542373 | M86: 1313 | N86: 19 | O86: 14.25
B87: 71 | C87: 1331.25 | D87: 1331 | E87: 18 | F87: 1.63 | K87: 71 | L87: 1331.292978 | M87: 1331 | N87: 18 | O87: 13.5
B88: 72 | C88: 1350 | D88: 1350 | E88: 19 | F88: 1.75 | K88: 72 | L88: 1350.043584 | M88: 1350 | N88: 19 | O88: 14.25
B89: 73 | C89: 1368.75 | D89: 1369 | E89: 19 | F89: 1.75 | K89: 73 | L89: 1368.794189 | M89: 1369 | N89: 19 | O89: 14.25
B90: 74 | C90: 1387.5 | D90: 1388 | E90: 19 | F90: 1.75 | K90: 74 | L90: 1387.544794 | M90: 1388 | N90: 19 | O90: 14.25
B91: 75 | C91: 1406.25 | D91: 1406 | E91: 18 | F91: 1.63 | K91: 75 | L91: 1406.2954 | M91: 1406 | N91: 18 | O91: 13.5
B92: 76 | C92: 1425 | D92: 1425 | E92: 19 | F92: 1.75 | K92: 76 | L92: 1425.046005 | M92: 1425 | N92: 19 | O92: 14.25
B93: 77 | C93: 1443.75 | D93: 1444 | E93: 19 | F93: 1.75 | K93: 77 | L93: 1443.79661 | M93: 1444 | N93: 19 | O93: 14.25
B94: 78 | C94: 1462.5 | D94: 1463 | E94: 19 | F94: 1.75 | K94: 78 | L94: 1462.547215 | M94: 1463 | N94: 19 | O94: 14.25
B95: 79 | C95: 1481.25 | D95: 1481 | E95: 18 | F95: 1.63 | K95: 79 | L95: 1481.297821 | M95: 1481 | N95: 18 | O95: 13.5
B96: 80 | C96: 1500 | D96: 1500 | E96: 19 | F96: 1.75 | K96: 80 | L96: 1500.048426 | M96: 1500 | N96: 19 | O96: 14.25
B97: 81 | C97: 1518.75 | D97: 1519 | E97: 19 | F97: 1.75 | K97: 81 | L97: 1518.799031 | M97: 1519 | N97: 19 | O97: 14.25
B98: 82 | C98: 1537.5 | D98: 1538 | E98: 19 | F98: 1.75 | K98: 82 | L98: 1537.549637 | M98: 1538 | N98: 19 | O98: 14.25
B99: 83 | C99: 1556.25 | D99: 1556 | E99: 18 | F99: 1.63 | K99: 83 | L99: 1556.300242 | M99: 1556 | N99: 18 | O99: 13.5
B100: 84 | C100: 1575 | D100: 1575 | E100: 19 | F100: 1.75 | K100: 84 | L100: 1575.050847 | M100: 1575 | N100: 19 | O100: 14.25
B101: 85 | C101: 1593.75 | D101: 1594 | E101: 19 | F101: 1.75 | K101: 85 | L101: 1593.801453 | M101: 1594 | N101: 19 | O101: 14.25
B102: 86 | C102: 1612.5 | D102: 1613 | E102: 19 | F102: 1.75 | K102: 86 | L102: 1612.552058 | M102: 1613 | N102: 19 | O102: 14.25
B103: 87 | C103: 1631.25 | D103: 1631 | E103: 18 | F103: 1.63 | K103: 87 | L103: 1631.302663 | M103: 1631 | N103: 18 | O103: 13.5
B104: 88 | C104: 1650 | D104: 1650 | E104: 19 | F104: 1.75 | K104: 88 | L104: 1650.053269 | M104: 1650 | N104: 19 | O104: 14.25
B105: 89 | C105: 1668.75 | D105: 1669 | E105: 19 | F105: 1.75 | K105: 89 | L105: 1668.803874 | M105: 1669 | N105: 19 | O105: 14.25
B106: 90 | C106: 1687.5 | D106: 1688 | E106: 19 | F106: 1.75 | K106: 90 | L106: 1687.554479 | M106: 1688 | N106: 19 | O106: 14.25
B107: 91 | C107: 1706.25 | D107: 1706 | E107: 18 | F107: 1.63 | K107: 91 | L107: 1706.305085 | M107: 1706 | N107: 18 | O107: 13.5
B108: 92 | C108: 1725 | D108: 1725 | E108: 19 | F108: 1.75 | K108: 92 | L108: 1725.05569 | M108: 1725 | N108: 19 | O108: 14.25
B109: 93 | C109: 1743.75 | D109: 1744 | E109: 19 | F109: 1.75 | K109: 93 | L109: 1743.806295 | M109: 1744 | N109: 19 | O109: 14.25
B110: 94 | C110: 1762.5 | D110: 1763 | E110: 19 | F110: 1.75 | K110: 94 | L110: 1762.556901 | M110: 1763 | N110: 19 | O110: 14.25
B111: 95 | C111: 1781.25 | D111: 1781 | E111: 18 | F111: 1.63 | K111: 95 | L111: 1781.307506 | M111: 1781 | N111: 18 | O111: 13.5
B112: 96 | C112: 1800 | D112: 1800 | E112: 19 | F112: 1.75 | K112: 96 | L112: 1800.058111 | M112: 1800 | N112: 19 | O112: 14.25
B113: 97 | C113: 1818.75 | D113: 1819 | E113: 19 | F113: 1.75 | K113: 97 | L113: 1818.808717 | M113: 1819 | N113: 19 | O113: 14.25
B114: 98 | C114: 1837.5 | D114: 1838 | E114: 19 | F114: 1.75 | K114: 98 | L114: 1837.559322 | M114: 1838 | N114: 19 | O114: 14.25
B115: 99 | C115: 1856.25 | D115: 1856 | E115: 18 | F115: 1.63 | K115: 99 | L115: 1856.309927 | M115: 1856 | N115: 18 | O115: 13.5
B116: 100 | C116: 1875 | D116: 1875 | E116: 19 | F116: 1.75 | K116: 100 | L116: 1875.060533 | M116: 1875 | N116: 19 | O116: 14.25
B117: 101 | C117: 1893.75 | D117: 1894 | E117: 19 | F117: 1.75 | K117: 101 | L117: 1893.811138 | M117: 1894 | N117: 19 | O117: 14.25
B118: 102 | C118: 1912.5 | D118: 1913 | E118: 19 | F118: 1.75 | K118: 102 | L118: 1912.561743 | M118: 1913 | N118: 19 | O118: 14.25
B119: 103 | C119: 1931.25 | D119: 1931 | E119: 18 | F119: 1.63 | K119: 103 | L119: 1931.312349 | M119: 1931 | N119: 18 | O119: 13.5
B120: 104 | C120: 1950 | D120: 1950 | E120: 19 | F120: 1.75 | K120: 104 | L120: 1950.062954 | M120: 1950 | N120: 19 | O120: 14.25
B121: 105 | C121: 1968.75 | D121: 1969 | E121: 19 | F121: 1.75 | K121: 105 | L121: 1968.813559 | M121: 1969 | N121: 19 | O121: 14.25
B122: 106 | C122: 1987.5 | D122: 1988 | E122: 19 | F122: 1.75 | K122: 106 | L122: 1987.564165 | M122: 1988 | N122: 19 | O122: 14.25
B123: 107 | C123: 2006.25 | D123: 2006 | E123: 18 | F123: 1.63 | K123: 107 | L123: 2006.31477 | M123: 2006 | N123: 18 | O123: 13.5
B124: 108 | C124: 2025 | D124: 2025 | E124: 19 | F124: 1.75 | K124: 108 | L124: 2025.065375 | M124: 2025 | N124: 19 | O124: 14.25
B125: 109 | C125: 2043.75 | D125: 2044 | E125: 19 | F125: 1.75 | K125: 109 | L125: 2043.815981 | M125: 2044 | N125: 19 | O125: 14.25
B126: 110 | C126: 2062.5 | D126: 2063 | E126: 19 | F126: 1.75 | K126: 110 | L126: 2062.566586 | M126: 2063 | N126: 19 | O126: 14.25
B127: 111 | C127: 2081.25 | D127: 2081 | E127: 18 | F127: 1.63 | K127: 111 | L127: 2081.317191 | M127: 2081 | N127: 18 | O127: 13.5
B128: 112 | C128: 2100 | D128: 2100 | E128: 19 | F128: 1.75 | K128: 112 | L128: 2100.067797 | M128: 2100 | N128: 19 | O128: 14.25
B129: 113 | C129: 2118.75 | D129: 2119 | E129: 19 | F129: 1.75 | K129: 113 | L129: 2118.818402 | M129: 2119 | N129: 19 | O129: 14.25
B130: 114 | C130: 2137.5 | D130: 2138 | E130: 19 | F130: 1.75 | K130: 114 | L130: 2137.569007 | M130: 2138 | N130: 19 | O130: 14.25
B131: 115 | C131: 2156.25 | D131: 2156 | E131: 18 | F131: 1.63 | K131: 115 | L131: 2156.319613 | M131: 2156 | N131: 18 | O131: 13.5
B132: 116 | C132: 2175 | D132: 2175 | E132: 19 | F132: 1.75 | K132: 116 | L132: 2175.070218 | M132: 2175 | N132: 19 | O132: 14.25
B133: 117 | C133: 2193.75 | D133: 2194 | E133: 19 | F133: 1.75 | K133: 117 | L133: 2193.820823 | M133: 2194 | N133: 19 | O133: 14.25
B134: 118 | C134: 2212.5 | D134: 2213 | E134: 19 | F134: 1.75 | K134: 118 | L134: 2212.571429 | M134: 2213 | N134: 19 | O134: 14.25
B135: 119 | C135: 2231.25 | D135: 2231 | E135: 18 | F135: 1.63 | K135: 119 | L135: 2231.322034 | M135: 2231 | N135: 18 | O135: 13.5
B136: 120 | C136: 2250 | D136: 2250 | E136: 19 | F136: 1.75 | K136: 120 | L136: 2250.072639 | M136: 2250 | N136: 19 | O136: 14.25
B137: 121 | C137: 2268.75 | D137: 2269 | E137: 19 | F137: 1.75 | K137: 121 | L137: 2268.823245 | M137: 2269 | N137: 19 | O137: 14.25
B138: 122 | C138: 2287.5 | D138: 2288 | E138: 19 | F138: 1.75 | K138: 122 | L138: 2287.57385 | M138: 2288 | N138: 19 | O138: 14.25
B139: 123 | C139: 2306.25 | D139: 2306 | E139: 18 | F139: 1.63 | K139: 123 | L139: 2306.324455 | M139: 2306 | N139: 18 | O139: 13.5
B140: 124 | C140: 2325 | D140: 2325 | E140: 19 | F140: 1.75 | K140: 124 | L140: 2325.075061 | M140: 2325 | N140: 19 | O140: 14.25
B141: 125 | C141: 2343.75 | D141: 2344 | E141: 19 | F141: 1.75 | K141: 125 | L141: 2343.825666 | M141: 2344 | N141: 19 | O141: 14.25
B142: 126 | C142: 2362.5 | D142: 2363 | E142: 19 | F142: 1.75 | K142: 126 | L142: 2362.576271 | M142: 2363 | N142: 19 | O142: 14.25
B143: 127 | C143: 2381.25 | D143: 2381 | E143: 18 | F143: 1.63 | K143: 127 | L143: 2381.326877 | M143: 2381 | N143: 18 | O143: 13.5
B144: 128 | C144: 2400 | D144: 2400 | E144: 19 | F144: 1.75 | K144: 128 | L144: 2400.077482 | M144: 2400 | N144: 19 | O144: 14.25
B145: 129 | C145: =D$15*B145 -> 2418.75 | D145: 2419 | E145: 19 | F145: =LOOKUP(E145,H$17:H$32,I$17:I$32) -> 1.75 | K145: 129 | L145: =M$15*K145 -> 2418.828087 | M145: 2419 | N145: 19 | O145: 14.25
B146: 130 | C146: 2437.5 | D146: =ROUND(C146,0) -> 2438 | E146: 19 | F146: 1.75 | K146: 130 | L146: 2437.578692 | M146: =ROUND(L146,0) -> 2438 | N146: 19 | O146: =N146*0.75 -> 14.25
B147: 131 | C147: 2456.25 | D147: 2456 | E147: =D147-D146 -> 18 | F147: 1.63 | K147: 131 | L147: 2456.329298 | M147: 2456 | N147: =M147-M146 -> 18 | O147: 13.5
B148: 132 | C148: 2475 | D148: 2475 | E148: 19 | F148: 1.75 | K148: 132 | L148: 2475.079903 | M148: 2475 | N148: 19 | O148: 14.25
B149: 133 | C149: 2493.75 | D149: 2494 | E149: 19 | F149: 1.75 | K149: 133 | L149: 2493.830508 | M149: 2494 | N149: 19 | O149: 14.25
B150: 134 | C150: 2512.5 | D150: 2513 | E150: 19 | F150: 1.75 | K150: 134 | L150: 2512.581114 | M150: 2513 | N150: 19 | O150: 14.25
B151: 135 | C151: 2531.25 | D151: 2531 | E151: 18 | F151: 1.63 | K151: 135 | L151: 2531.331719 | M151: 2531 | N151: 18 | O151: 13.5
B152: 136 | C152: 2550 | D152: 2550 | E152: 19 | F152: 1.75 | K152: 136 | L152: 2550.082324 | M152: 2550 | N152: 19 | O152: 14.25
B153: 137 | C153: 2568.75 | D153: 2569 | E153: 19 | F153: 1.75 | K153: 137 | L153: 2568.83293 | M153: 2569 | N153: 19 | O153: 14.25
B154: 138 | C154: 2587.5 | D154: 2588 | E154: 19 | F154: 1.75 | K154: 138 | L154: 2587.583535 | M154: 2588 | N154: 19 | O154: 14.25
B155: 139 | C155: 2606.25 | D155: 2606 | E155: 18 | F155: 1.63 | K155: 139 | L155: 2606.33414 | M155: 2606 | N155: 18 | O155: 13.5
B156: 140 | C156: 2625 | D156: 2625 | E156: 19 | F156: 1.75 | K156: 140 | L156: 2625.084746 | M156: 2625 | N156: 19 | O156: 14.25
B157: 141 | C157: 2643.75 | D157: 2644 | E157: 19 | F157: 1.75 | K157: 141 | L157: 2643.835351 | M157: 2644 | N157: 19 | O157: 14.25
B158: 142 | C158: 2662.5 | D158: 2663 | E158: 19 | F158: 1.75 | K158: 142 | L158: 2662.585956 | M158: 2663 | N158: 19 | O158: 14.25
B159: 143 | C159: 2681.25 | D159: 2681 | E159: 18 | F159: 1.63 | K159: 143 | L159: 2681.336562 | M159: 2681 | N159: 18 | O159: 13.5
B160: 144 | C160: 2700 | D160: 2700 | E160: 19 | F160: 1.75 | K160: 144 | L160: 2700.087167 | M160: 2700 | N160: 19 | O160: 14.25
B161: 145 | C161: 2718.75 | D161: 2719 | E161: 19 | F161: 1.75 | K161: 145 | L161: 2718.837772 | M161: 2719 | N161: 19 | O161: 14.25
B162: 146 | C162: 2737.5 | D162: 2738 | E162: 19 | F162: 1.75 | K162: 146 | L162: 2737.588378 | M162: 2738 | N162: 19 | O162: 14.25
B163: 147 | C163: 2756.25 | D163: 2756 | E163: 18 | F163: 1.63 | K163: 147 | L163: 2756.338983 | M163: 2756 | N163: 18 | O163: 13.5
B164: 148 | C164: 2775 | D164: 2775 | E164: 19 | F164: 1.75 | K164: 148 | L164: 2775.089588 | M164: 2775 | N164: 19 | O164: 14.25
B165: 149 | C165: 2793.75 | D165: 2794 | E165: 19 | F165: 1.75 | K165: 149 | L165: 2793.840194 | M165: 2794 | N165: 19 | O165: 14.25
B166: 150 | C166: 2812.5 | D166: 2813 | E166: 19 | F166: 1.75 | K166: 150 | L166: 2812.590799 | M166: 2813 | N166: 19 | O166: 14.25
B167: 151 | C167: 2831.25 | D167: 2831 | E167: 18 | F167: 1.63 | K167: 151 | L167: 2831.341404 | M167: 2831 | N167: 18 | O167: 13.5
B168: 152 | C168: 2850 | D168: 2850 | E168: 19 | F168: 1.75 | K168: 152 | L168: 2850.09201 | M168: 2850 | N168: 19 | O168: 14.25
B169: 153 | C169: 2868.75 | D169: 2869 | E169: 19 | F169: 1.75 | K169: 153 | L169: 2868.842615 | M169: 2869 | N169: 19 | O169: 14.25
B170: 154 | C170: 2887.5 | D170: 2888 | E170: 19 | F170: 1.75 | K170: 154 | L170: 2887.59322 | M170: 2888 | N170: 19 | O170: 14.25
B171: 155 | C171: 2906.25 | D171: 2906 | E171: 18 | F171: 1.63 | K171: 155 | L171: 2906.343826 | M171: 2906 | N171: 18 | O171: 13.5
B172: 156 | C172: 2925 | D172: 2925 | E172: 19 | F172: 1.75 | K172: 156 | L172: 2925.094431 | M172: 2925 | N172: 19 | O172: 14.25
B173: 157 | C173: 2943.75 | D173: 2944 | E173: 19 | F173: 1.75 | K173: 157 | L173: 2943.845036 | M173: 2944 | N173: 19 | O173: 14.25
B174: 158 | C174: 2962.5 | D174: 2963 | E174: 19 | F174: 1.75 | K174: 158 | L174: 2962.595642 | M174: 2963 | N174: 19 | O174: 14.25
B175: 159 | C175: 2981.25 | D175: 2981 | E175: 18 | F175: 1.63 | K175: 159 | L175: 2981.346247 | M175: 2981 | N175: 18 | O175: 13.5
B176: 160 | C176: 3000 | D176: 3000 | E176: 19 | F176: 1.75 | K176: 160 | L176: 3000.096852 | M176: 3000 | N176: 19 | O176: 14.25
B177: 161 | C177: 3018.75 | D177: 3019 | E177: 19 | F177: 1.75 | K177: 161 | L177: 3018.847458 | M177: 3019 | N177: 19 | O177: 14.25
B178: 162 | C178: 3037.5 | D178: 3038 | E178: 19 | F178: 1.75 | K178: 162 | L178: 3037.598063 | M178: 3038 | N178: 19 | O178: 14.25
B179: 163 | C179: 3056.25 | D179: 3056 | E179: 18 | F179: 1.63 | K179: 163 | L179: 3056.348668 | M179: 3056 | N179: 18 | O179: 13.5
B180: 164 | C180: 3075 | D180: 3075 | E180: 19 | F180: 1.75 | K180: 164 | L180: 3075.099274 | M180: 3075 | N180: 19 | O180: 14.25
B181: 165 | C181: 3093.75 | D181: 3094 | E181: 19 | F181: 1.75 | K181: 165 | L181: 3093.849879 | M181: 3094 | N181: 19 | O181: 14.25
B182: 166 | C182: 3112.5 | D182: 3113 | E182: 19 | F182: 1.75 | K182: 166 | L182: 3112.600484 | M182: 3113 | N182: 19 | O182: 14.25
B183: 167 | C183: 3131.25 | D183: 3131 | E183: 18 | F183: 1.63 | K183: 167 | L183: 3131.35109 | M183: 3131 | N183: 18 | O183: 13.5
B184: 168 | C184: 3150 | D184: 3150 | E184: 19 | F184: 1.75 | K184: 168 | L184: 3150.101695 | M184: 3150 | N184: 19 | O184: 14.25
B185: 169 | C185: 3168.75 | D185: 3169 | E185: 19 | F185: 1.75 | K185: 169 | L185: 3168.8523 | M185: 3169 | N185: 19 | O185: 14.25
B186: 170 | C186: 3187.5 | D186: 3188 | E186: 19 | F186: 1.75 | K186: 170 | L186: 3187.602906 | M186: 3188 | N186: 19 | O186: 14.25
B187: 171 | C187: 3206.25 | D187: 3206 | E187: 18 | F187: 1.63 | K187: 171 | L187: 3206.353511 | M187: 3206 | N187: 18 | O187: 13.5
B188: 172 | C188: 3225 | D188: 3225 | E188: 19 | F188: 1.75 | K188: 172 | L188: 3225.104116 | M188: 3225 | N188: 19 | O188: 14.25
B189: 173 | C189: 3243.75 | D189: 3244 | E189: 19 | F189: 1.75 | K189: 173 | L189: 3243.854722 | M189: 3244 | N189: 19 | O189: 14.25
B190: 174 | C190: 3262.5 | D190: 3263 | E190: 19 | F190: 1.75 | K190: 174 | L190: 3262.605327 | M190: 3263 | N190: 19 | O190: 14.25
B191: 175 | C191: 3281.25 | D191: 3281 | E191: 18 | F191: 1.63 | K191: 175 | L191: 3281.355932 | M191: 3281 | N191: 18 | O191: 13.5
B192: 176 | C192: 3300 | D192: 3300 | E192: 19 | F192: 1.75 | K192: 176 | L192: 3300.106538 | M192: 3300 | N192: 19 | O192: 14.25
B193: 177 | C193: 3318.75 | D193: 3319 | E193: 19 | F193: 1.75 | K193: 177 | L193: 3318.857143 | M193: 3319 | N193: 19 | O193: 14.25
B194: 178 | C194: 3337.5 | D194: 3338 | E194: 19 | F194: 1.75 | K194: 178 | L194: 3337.607748 | M194: 3338 | N194: 19 | O194: 14.25
B195: 179 | C195: 3356.25 | D195: 3356 | E195: 18 | F195: 1.63 | K195: 179 | L195: 3356.358354 | M195: 3356 | N195: 18 | O195: 13.5
B196: 180 | C196: 3375 | D196: 3375 | E196: 19 | F196: 1.75 | K196: 180 | L196: 3375.108959 | M196: 3375 | N196: 19 | O196: 14.25
B197: 181 | C197: 3393.75 | D197: 3394 | E197: 19 | F197: 1.75 | K197: 181 | L197: 3393.859564 | M197: 3394 | N197: 19 | O197: 14.25
B198: 182 | C198: 3412.5 | D198: 3413 | E198: 19 | F198: 1.75 | K198: 182 | L198: 3412.610169 | M198: 3413 | N198: 19 | O198: 14.25
B199: 183 | C199: 3431.25 | D199: 3431 | E199: 18 | F199: 1.63 | K199: 183 | L199: 3431.360775 | M199: 3431 | N199: 18 | O199: 13.5
B200: 184 | C200: 3450 | D200: 3450 | E200: 19 | F200: 1.75 | K200: 184 | L200: 3450.11138 | M200: 3450 | N200: 19 | O200: 14.25
B201: 185 | C201: 3468.75 | D201: 3469 | E201: 19 | F201: 1.75 | K201: 185 | L201: 3468.861985 | M201: 3469 | N201: 19 | O201: 14.25
B202: 186 | C202: 3487.5 | D202: 3488 | E202: 19 | F202: 1.75 | K202: 186 | L202: 3487.612591 | M202: 3488 | N202: 19 | O202: 14.25
B203: 187 | C203: 3506.25 | D203: 3506 | E203: 18 | F203: 1.63 | K203: 187 | L203: 3506.363196 | M203: 3506 | N203: 18 | O203: 13.5
... 113 more rows

Sheet Scale原紙
A2: 22%の縮小印刷用、下の3行が試し印刷用 ＜用紙は、 ＞
A9: 8 | K9: 7 | U9: 6 | AE9: 5 | AO9: 4 | AY9: 3 | BI9: 2 | BS9: 1 | CC9: 20 | CM9: 9 | CW9: 8 | DG9: 7 | DQ9: 6 | EA9: 5 | EK9: 4 | EU9: 3 | FE9: 2 | FO9: 1 | FY9: 10 | GI9: 9 | GS9: 8 | HC9: 7 | HM9: 6 | HW9: 5 | IG9: 4 | IQ9: 3 | JA9: 2 | JK9: 1
D14: 9 | E14: 8 | F14: 6 | P14: 5 | Z14: 4 | AJ14: 3 | AT14: 2 | BD14: 1 | BN14: 50 | BX14: 9 | CH14: 8 | CR14: 7 | DB14: 6 | DL14: 5 | DV14: 4 | EF14: 3 | EP14: 2 | EZ14: 1 | FJ14: 40 | FT14: 9 | GD14: 8 | GN14: 7 | GX14: 6 | HH14: 5 | HR14: 4 | IB14: 3 | IL14: 2 | IV14: 1 | JF14: 30 | JP14: 9
D20: 9 | E20: 8 | F20: 1 | P20: 2 | Z20: 3 | AJ20: 4 | AT20: 5 | BD20: 6 | BN20: 7 | BX20: 8 | CH20: 9 | CR20: 10 | DB20: 1 | DL20: 2 | DV20: 3 | EF20: 4 | EP20: 5 | EZ20: 6 | FJ20: 7 | FT20: 8 | GD20: 9 | GN20: 20 | GX20: 1 | HH20: 2 | HR20: 3 | IB20: 4 | IL20: 5 | IV20: 6 | JF20: 7 | JP20: 8 | JZ20: 9
A25: 9 | K25: 30 | U25: 1 | AE25: 2 | AO25: 3 | AY25: 4 | BI25: 5 | BS25: 6 | CC25: 7 | CM25: 8 | CW25: 9 | DG25: 40 | DQ25: 1 | EA25: 2 | EK25: 3 | EU25: 4 | FE25: 5 | FO25: 6 | FY25: 7 | GI25: 8 | GS25: 9 | HC25: 50 | HM25: 1 | HW25: 2 | IG25: 3 | IQ25: 4 | JA25: 5 | JK25: 6 | JU25: 7 | JV25: 8 | JW25: 9
